Cogmind - Beta 16.1 @@@ ROGUE MODE // 2026.04.28 @ 20:15:04 Player: Jgu1971 Result: Destroyed by D-53 Grenadier with Mini Grenade Launcher Performance ------------- Evolutions (0) 0 Regions Visited (2) 400 Robots Destroyed (0) 0 Value Destroyed (0) 0 Prototype IDs (0) 0 Alien Tech Used (0) 0 Bonus (0) 0 TOTAL SCORE: 400 Bonus ------- None Cogmind --------- Core Integrity 0/250 Matter 149/300 Energy 100/100 System Corruption 0% Temperature Cool (0) Movement Rolling (80) Location -10/Mines Parts ------- > --- POWER (1) -------- (None) > --- PROPULSION (2) --- Wheel > --- UTILITY (2) ------ Small Storage Unit > --- WEAPON (2) ------- Light Assault Rifle > --- INVENTORY (8) ---- Light Ion Engine Core Shielding EM Pulse Gun Assault Rifle Mining Laser Peak State ------------ > --- POWER ------------ Ion Engine > --- PROPULSION ------- Wheel Compact Wheel > --- UTILITY ---------- Small Storage Unit > --- WEAPON ----------- Light Assault Rifle Makeshift Shrapnel Gun > --- INVENTORY -------- Light Ion Engine Core Shielding EM Pulse Gun Assault Rifle Mining Laser [Rating: 9] Favorites ----------- Power Ion Engine Engine Ion Engine Propulsion Wheel Wheel Wheel Utility Small Storage Unit Storage Small Storage Unit Weapon Light Assault Rifle Ballistic Gun Light Assault Rifle Build | -11 -10 -10 ------- Run | Yrd Mat Min Slots Evolved . | . . . Power . | . . . Propulsion . | . . . Utility . | . . . Weapon . | . . . Parts Attached 8 | 7 . 1 Power 2 | 2 . . Engine 2 | 2 . . Core . | . . . Reactor . | . . . Propulsion 2 | 2 . . Treads . | . . . Leg . | . . . Wheel 2 | 2 . . Hover . | . . . Flight . | . . . Utility 1 | 1 . . Device . | . . . Storage 1 | 1 . . Processor . | . . . Hackware . | . . . Protection . | . . . Artifact . | . . . Weapon 3 | 2 . 1 Energy Gun . | . . . Energy Cannon . | . . . Ballistic Gun 3 | 2 . 1 Ballistic Cannon . | . . . Launcher . | . . . Special Weapon . | . . . Impact Weapon . | . . . Slashing Weapon . | . . . Piercing Weapon . | . . . Special Melee Weapon . | . . . Unidentified Prototypes . | . . . Parts Lost 3 | . . 3 Power 1 | . . 1 Propulsion 1 | . . 1 Utility . | . . . Weapon 1 | . . 1 Highest Loss Streak 3 | . . 3 To Critical Strikes . | . . . Average Backups 3 | 2 2 4 Power . | . 1 1 Propulsion . | . . . Utility . | . . 1 Weapon 1 | . 1 2 Tool/Special . | . . . Unused Backups 3 | . . 3 Power . | . . . Propulsion . | . . . Utility 1 | . . 1 Weapon 2 | . . 2 Tool/Special . | . . . Average Slot Usage (%) 83 | . 85 81 Engine 14 | . 14 14 Wheel 26 | . 28 24 Storage 14 | . 14 14 Ballistic Gun 28 | . 28 28 Peak Build Rating 9 | 6 6 9 Average Rating 6 | 3 6 7 On Entrance 4 | . 6 6 Avg Prop Armor Cover (%) . | . . . Naked Turns . | . . . Heaviest Build 13 | 13 13 13 Greatest Support 26 | 26 26 26 Greatest Overweight (x) 1 | 1 . 1 Average Overweight (x) . | . . . Largest Inventory Capacity 8 | 8 8 8 Average Capacity 7 | 7 8 8 Most Carried 5 | 5 3 5 Average Carried 3 | 2 2 4 Final Capacity 8 | 8 8 8 Final Carried 5 | 2 3 5 Class Distribution -------------------- 100% | Mutant Dominant Class ---------------- Mutant | -10/Materials Mutant | -10/Mines Resources | -11 -10 -10 ----------- Run | Yrd Mat Min Matter Collected 191 | 180 . 11 Remotely . | . . . Salvage Created 35 | . . 35 Parts . | . . . Haulers Intercepted . | . . . Recyclers Shooed . | . . . Parts Field Recycled . | . . . Retrieved Matter . | . . . Parts Self-Destructed . | . . . Prevented . | . . . Parts Restored . | . . . Kills | -11 -10 -10 ------- Run | Yrd Mat Min Combat Hostiles Destroyed 3 | . . 3 Guns 3 | . . 3 Classes Destroyed 1 | . . 1 Assembled 3 | . . 3 Best Kill Streak 3 | . . 3 Combat Bots Only 3 | . . 3 Max Kills in Single Turn 1 | . . 1 Gunslinging . | . . . Exploded . | . . . Melee . | . . . Uniques/NPCs Destroyed . | . . . Combat | -11 -10 -10 -------- Run | Yrd Mat Min Hostile Shots Fired 33 | . 2 31 Missed 7 | . . 7 Hits 26 | . 2 24 Melee 2 | . . 2 Projectile 24 | . 2 22 AOE 7 | . . 7 Critical Strikes 1 | . . 1 Damage Taken 602 | . 22 580 Core 292 | . 12 280 Absorbed by Shields . | . . . Core Remaining (%) 100 | 100 . . Volleys Fired 12 | . . 12 Largest 2 | . . 2 Hottest 44 | . . 44 Shots Fired 23 | . . 23 Gun 23 | . . 23 Cannon . | . . . Launcher . | . . . Special . | . . . Kinetic 23 | . . 23 Thermal . | . . . Explosive . | . . . Electromagnetic . | . . . Robot Hit Streak 3 | . . 3 Robot Miss Streak 7 | . . 7 Penetration Max . | . . . Secondary Targets 1 | . . 1 Max Gunslinging Chain 1 | . . 1 Shots Hit Robots 16 | . . 16 Core Hits 11 | . . 11 Critical Kills . | . . . Critical Parts Destroyed . | . . . Critical Strikes . | . . . Melee Attacks . | . . . Impact . | . . . Slashing . | . . . Piercing . | . . . Sneak Attacks . | . . . Combat Hostiles . | . . . Follow-up Attacks . | . . . Damage Inflicted 218 | . . 218 Guns 218 | . . 218 Cannons . | . . . Explosions . | . . . Melee . | . . . Ramming . | . . . Kinetic 218 | . . 218 Thermal . | . . . Explosive . | . . . Electromagnetic . | . . . Impact . | . . . Slashing . | . . . Piercing . | . . . Highest Corruption . | . . . Average Corruption . | . . . Corruption Purged . | . . . Corruption Blocked . | . . . Overload Shots . | . . . Overflow Damage . | . . . Projectiles . | . . . Explosions . | . . . Melee . | . . . Knockbacks . | . . . Impact . | . . . Kinetic . | . . . Secondary . | . . . Self-Inflicted Damage . | . . . Shots . | . . . Rammed . | . . . Targets Rammed . | . . . Kicked . | . . . Crushed . | . . . Highest Temperature 24 | . . 24 Average Temperature 4 | . . 4 Received Heat Transfer 32 | . 12 20 Siege Activations . | . . . Martial Activations . | . . . Shielding Activations . | . . . Robots Disrupted . | . . . Combat Hostiles . | . . . Robots Corrupted . | . . . Combat Hostiles . | . . . Parts Fried . | . . . Impact Corruptions . | . . . Robots Melted . | . . . Combat Hostiles . | . . . Parts Melted . | . . . Heat Transferred . | . . . Parts Sabotaged . | . . . Parts Stolen . | . . . Parts Stripped . | . . . Power Chain Reactions . | . . . Alert | -11 -10 -10 ------- Run | Yrd Mat Min Maximum Alert Level . | . . . Low Security (%) 100 | 100 100 100 Level 1 . | . . . Level 2 . | . . . Level 3 . | . . . Level 4 . | . . . Level 5 . | . . . High Security . | . . . Max Security . | . . . Peak Influence 15 | . 15 5 Initial 5 | . . 5 Average 1 | . 3 . Influence Increases 34 | . 34 . Successful Hack 4 | . 4 . Partial Spotted 15 | . 15 . Lose Combat Pursuer 15 | . 15 . Influence Decreases 34 | . 19 15 Entered New Map 10 | . . 10 Time Decay 24 | . 19 5 Squads Dispatched 1 | . 1 . Investigation . | . . . Extermination . | . . . Reinforcement 1 | . 1 . Assault . | . . . Garrison . | . . . Intercept . | . . . Searches Triggered . | . . . Construction Impeded . | . . . Haulers Reinforced . | . . . Active Scanning Responses . | . . . Cargo Convoy Interrupts . | . . . Stealth | -11 -10 -10 --------- Run | Yrd Mat Min Distress Signals . | . . . Communications Jammed . | . . . Distress Signals . | . . . Times Spotted 22 | . 3 19 Peak Tracking Total 9 | . 3 9 Tactical Retreats 1 | . 1 . Traps | -11 -10 -10 ------- Run | Yrd Mat Min Traps Triggered . | . . . Indirectly . | . . . Trap Hack Attempts . | . . . Triggered . | . . . Disarmed . | . . . Reprogrammed . | . . . Reused . | . . . Traps Extracted . | . . . Installed . | . . . Triggered . | . . . Machines | -11 -10 -10 ---------- Run | Yrd Mat Min Machines Disabled . | . . . Max in Single Turn . | . . . Machines Repaired . | . . . Machines Dismantled . | . . . Machines Sabotaged . | . . . Overloaded Fab Kills . | . . . Hacking | -11 -10 -10 --------- Run | Yrd Mat Min Machines Accessed 2 | . 2 . Terminals 2 | . 2 . Fabricators . | . . . Repair Stations . | . . . Recycling Units . | . . . Scanalyzers . | . . . Garrison Access . | . . . Total Hacks 4 | . 4 . Successful 2 | . 2 . Failed 2 | . 2 . Catastrophic . | . . . Database Lockouts . | . . . Manual . | . . . Terminals 4 | . 4 . Fabricators . | . . . Repair Stations . | . . . Recycling Units . | . . . Scanalyzers . | . . . Garrison Access . | . . . Terminal Hacks 2 | . 2 . Locate Traps 2 | . 2 . Fabricator Hacks . | . . . Repair Station Hacks . | . . . Recycling Unit Hacks . | . . . Scanalyzer . | . . . Garrison Access Hacks . | . . . Unauthorized Hacks . | . . . Terminals . | . . . Fabricators . | . . . Repair Stations . | . . . Recycling Units . | . . . Scanalyzers . | . . . Garrison Access . | . . . Data Cores Recovered . | . . . Used . | . . . Hacking Detections . | . . . Full Trace Events . | . . . Feedback Events . | . . . Feedback Blocked . | . . . Robot Schematics Acquired . | . . . Robots Built . | . . . Authchips . | . . . Time . | . . . Total Robot Build Rating . | . . . Part Schematics Acquired . | . . . Parts Built . | . . . Authchips . | . . . Time . | . . . Total Part Build Rating . | . . . Part Studies Acquired . | . . . Parts Repaired . | . . . Time . | . . . Parts Recycled . | . . . Recycled Matter . | . . . Retrieved Matter . | . . . Retrieved Components . | . . . Parts Scanalyzed . | . . . Part Schematics Acquired . | . . . Parts Damaged . | . . . Bothacking | -11 -10 -10 ------------ Run | Yrd Mat Min Used RIF Installer . | . . . Robots Hacked . | . . . Non-combat . | . . . Combat . | . . . Robot Hacks Applied . | . . . Relay Couplers Released . | . . . Fabnet Peak Effective % . | . . . Robots Rewired . | . . . Allies Hacked . | . . . Hacks Repelled . | . . . Allies | -11 -10 -10 -------- Run | Yrd Mat Min Total Allies 1 | . . 1 Largest Group 1 | . . 1 Highest-Rated Group 31 | . . 31 Highest-Rated Ally 31 | . . 31 Total Orders . | . . . Ally Attacks 4 | . . 4 Total Damage 44 | . . 44 Kills . | . . . Allies Corrupted . | . . . Allies Melted . | . . . Intel | -11 -10 -10 ------- Run | Yrd Mat Min Active Infowar (turns) . | . . . Robot Analysis Total . | . . . Derelict Logs Recovered 2 | . . 2 Drone Launches . | . . . Drone Recoveries . | . . . Exploration | -11 -10 -10 ------------- Run | Yrd Mat Min Turns Passed 323 | 57 166 100 Spaces Moved 301 | 51 184 66 Core 14 | 14 . . Treads . | . . . Legs . | . . . Wheels 287 | 37 184 66 Hover . | . . . Flight . | . . . Fastest Speed 50 | 50 90 90 Average Speed 88 | 79 90 90 Slowest Speed 95 | 95 90 95 Overloaded Moves . | . . . Propulsion Burnouts . | . . . Robots Hopped . | . . . Potential Cave-ins . | . . . Cave-ins Triggered . | . . . Exploration Rate (%) 15 | 3 26 18 Regions Visited 2 Branch Regions 1 Pre-discovered Areas . | . . . Known Exits Taken . | . . . Unknown Exits Taken 2 | 1 1 . Scrap Searched . | . . . Spaces Dug . | . . . Terrain Destroyed . | . . . Melee . | . . . Projectile . | . . . AOE . | . . . Terrain Rammed . | . . . Walls Destroyed . | . . . Machines Disabled . | . . . Actions | -11 -10 -10 --------- Run | Yrd Mat Min Total 335 | 66 184 85 Wait 4 | . . 4 Move 299 | 50 183 66 Hop . | . . . Pick Up 11 | 8 1 2 Fast Attach . | . . . Attach 6 | 6 . . Detach . | . . . Swap 3 | 2 . 1 Drop . | . . . Fire 12 | . . 12 Melee . | . . . Ram . | . . . Kick . | . . . Crush . | . . . Escape Stasis . | . . . Rewire . | . . . Trap . | . . . Miscellaneous . | . . . Route ------- -11/Scrapyard -10/Materials (discovered 2 exits: [*Min x2]) -10/Mines History --------- Turn | Location | Event 13 | -11/Scrapyard | Discovered new exit (range 15) 58 | -11/Scrapyard | Entered Materials 95 | -10/Materials | Discovered new exit (range 16) 169 | -10/Materials | Discovered new exit (range 16) 224 | -10/Materials | Entered Mines 227 | -10/Mines | Received a Mining Laser from a helpful Derelict 240 | -10/Mines | Learned Materials emergency access door positions 250 | -10/Mines | A weapon hastily lodged in a ceiling crevice suddenly fell to the ground 270 | -10/Mines | Assembled infested the area 312 | -10/Mines | Build established: Mutant 317 | -10/Mines | Core integrity fell below 50% 321 | -10/Mines | Core integrity fell below 20% 324 | -10/Mines | Destroyed by D-53 Grenadier with Mini Grenade Launcher Last Messages --------------- 00296_ Knocked back. 00297_ as-06338 destroyed. 00299_ The unstable cave ceiling collapses. 00299_ Com. Wheel destroyed. 00301_ The unstable cave ceiling collapses. 00303_ as-71437 destroyed. 00303_ Switching to secondary target: as-39473. 00305_ as-39473 destroyed. 00309_ Acquired 11 matter. 00311_ as-43989 destroyed. 00314_ K-01 Serf collects debris. 00316_ as-89209 destroyed. 00318_ as-20642 destroyed. 00318_ as-08635 destroyed. 00318_ as-81015 destroyed. 00318_ K-01 Serf collects debris. 00320_ as-47692 destroyed. 00322_ K-01 Serf collects debris. 00322_ Ion Engine destroyed. 00322_ Mak. Shrapnel Gun destroyed. Map ----- +----------------------------------------------------+ | ?????????????????????????????????????????????????? | | ?????????????????????????????????##??????????????? | | ?????????????????????????????????# ??????????????? | | ?????????????????????????????????# ??????????????? | | ?????????????????????????????????# ""????????????? | | ?????????????????????????????????# ""????????????? | | ?????????????????????????????????? ""????????????? | | ?????????????????????????????????? ????????????? | | ?????????????????????????????????? ????????????? | | ??????????????????????????????????# #????????????? | | ??????????????????????????????????# #????????????? | | ??????????????????????????????????# #????????????? | | ??????????????????????????????????# ##???????????? | | ?????????????????????????????????## ##??????????? | | ??????????????????????????####??## ##?????????? | | ?????????????????????????? # #### #?????????? | | ???????????????????####### ## #??????? | | ??????????????????# k #??????? | | ????????????????# ###### ###### #####??????? | | ??????????????????????????#d#????# #??????????? | | ??????????????????????##### ##???# ##?????????? | | ?????????????????????## # ##??# #?????????? | | ?????????????????????# ##?## #?????????? | | ????????????????????## #??# ##?????????? | | ???????????????????## ##?# ##??????????? | | ???????????????????# % @ #?# #???????????? | | ????????????????# a % #?# #???????????? | | ???????????????# a ##?# #???????????? | | ??????????????# # ##??# #???????#???? | | ????????????aa a ?### ###???# #????? #???? | | ???????????? a ????############ ###?? #???? | | ???????????? ??????????## ## ##??? | | ???????????? ?????????????# #??? | | ?????????????????????????# #??? | | ????????????????????????# ##??? | | ????????????????????????# ## ##???? | | ????????????????????????# ##?## ##????? | | ????????????????????????## ????# ####?????? | | ?????????????????????????# ?????#####????????? | | ?????????????????????????# ??????????????????? | | ?????????????????????????# ???????????????????? | | ?????????????????????????## ????????????????????? | | ??????????????????????????##?????????????????????? | | ?????????????????????????????????????????????????? | | ?????????????????????????????????????????????????? | | ?????????????????????????????????????????????????? | | ?????????????????????????????????????????????????? | | ?????????????????????????????????????????????????? | | ?????????????????????????????????????????????????? | | ?????????????????????????????????????????????????? | +----------------------------------------------------+ Best States ------------- Heat Dissipation 25 Energy Generation 10 Energy Capacity 250 Matter Stores 200 Matter Capacity 300 Sight Range 16 Terrain Scan Density 10 Evasion (%) 50 Item Schematics ----------------- None Robot Schematics ------------------ None Fabricated ------------ Nothing Repaired ---------- Nothing Studied --------- None Alien Tech Used ----------------- None Achievements -------------- None Challenges ------------ None Game ------ Seed WeldingSixDetector Manual? 0 Play Time 00:08:32 Cumulative 8.7 hours Start 2026.04.28 @ 20:05:51 End 2026.04.28 @ 20:15:04 Sessions 1 Manual Loads 0 Difficulty Rogue Special Mode None Game No. 12 Rogue 12 Adventurer 0 Explorer 0 Win Type - Total 0 Types 0/0/0/0/0/0/0/0/0/0 Lore% 6 Gallery% 7 Achievement% 8 Wizard Run 0 Options --------- Layout 1 ASCII 0 Keyboard 0 Movement Arrows Keybinds 0 Fullscreen 1 Font 48/Smallcaps Map View 50x35 Zoom Use 0% Tactical HUD 1 Map Filters NONE Filters NONE Steam SD RUN: d67cf0cc-1c8b-473b-bf53-cb9fa8d25de8